[Event "SAIF POWERTEC 45th BAN Ch 2019"]
[Site "Dhaka"]
[Date "2019.11.06"]
[Round "5.12"]
[White "S M Sharon"]
[Black "Zia, Tahsin Tajwar"]
[Result "1/2-1/2"]
[ECO "A11"]
[WhiteElo "2092"]
[BlackElo "2058"]
[Annotator "NA RC"]
[PlyCount "92"]
[EventDate "2019.11.02"]
[EventType "swiss"]
[EventCountry "BAN"]
[SourceTitle "playchess.com"]
[Source "ChessBase"]
[SourceQuality "1"]
[TimeControl "40/5400+30:1800+30"]

{[%evp 8,92,13,5,16,-27,-23,-27,-29,-46,-40,-38,-25,-32,-7,-16,-25,-20,-16,-17,-25,-19,-18,-26,2,-38,-6,-35,0,0,-8,-4,-3,0,0,-10,0,-30,0,-6,-7,-18,-4,-5,0,-6,0,0,0,0,0,0,0,0,5,0,0,0,0,-12,0,-20,-17,-31,-15,-30,-8,0,0,0,0,0,0,0,0,0,0,0,0,0,0,0,0,0,0,-6,0]} 1. Nf3 {[%emt 1:30:30]} d5 {[%emt 1:30:30]} 2. g3 {[%emt 0:00:30]} Bg4 {[%emt 0:00:30]} 3. Bg2 {[%emt 0:00:30]} e6 {[%emt 0:00:30]} 4. c4 {[%emt 0:00:30]} c6 {[%emt 0:00:30]} 5. Qb3 {[%emt 0:00:30]} Qb6 {[%emt 0:00:30]} 6. Qxb6 {[%emt 0:00:30] A11: English Opening: 1...c6} (6. d3 Nd7 7. Be3 Qxb3 8. axb3 a6 9. O-O Ngf6 10. Rc1 Be7 11. h3 Bxf3 12. Bxf3 O-O 13. Bg2 {½-½ (40) Wang,Y (2718)-Sargissian,G (2702) Huaian 2016}) 6... axb6 {[%emt 0:00:30]} 7. d3 {[%emt 0:00:30]} Nd7 {[%emt 0:00:30]} 8. Be3 $146 {[%emt 0:00:30]} ({Predecessor:} 8. cxd5 exd5 9. O-O g6 10. Bd2 Ngf6 11. Bc3 Bg7 12. h3 Bxf3 13. Bxf3 {0-1 (77) Xiao,Y (2100)-Khotenashvili,B (2518) China 2015}) 8... Ngf6 {[%emt 0:00:30]} 9. O-O {[%emt 0:00:30]} Bd6 {[%emt 0:00:30]} 10. Nc3 {[%emt 0:00:30]} O-O {[%emt 0:00:30]} 11. h3 {[%emt 0:00:30]} Bxf3 {[%emt 0:00:30]} 12. Bxf3 {[%emt 0:00:30]} Bc5 {[%emt 0:00:30]} 13. d4 {[%emt 0:00:30]} Bb4 {[%emt 0:00:30]} 14. cxd5 {[%emt 0:00:30]} exd5 {[%emt 0:00:30]} 15. Rfc1 {[%emt 0:00:30]} h6 {[%emt 0:00:30]} 16. g4 {[%emt 0:00:30]} Rfe8 {[%emt 0:00:30]} 17. Bd2 {[%emt 0:00:30]} Bxc3 {[%emt 0:00:30]} 18. Bxc3 {[%emt 0:00:30]} Ne4 {[%emt 0:00:30]} 19. Bb4 {[%emt 0:00:30]} Ng5 {[%emt 0:00:30]} 20. Kg2 $1 {[%emt 0:00:30]} Nf8 {[%emt 0:00:30]} 21. Bxf8 {[%emt 0:00:30]} Kxf8 {[%emt 0:00:30]} 22. e3 {[%emt 0:00:30]} Ra7 {[%emt 0:00:30]} 23. Bd1 {[%emt 0:00:30]} Rea8 {[%emt 0:00:30]} 24. Bb3 {[%emt 0:00:30]} Ne4 {[%emt 0:00:30]} 25. Rc2 {[%emt 0:00:30]} Nd6 {[%emt 0:00:30]} 26. f3 {[%emt 0:00:30]} b5 {[%emt 0:00:30]} 27. Re1 {[%emt 0:00:30]} Nc4 {[%emt 0:00:30]} 28. e4 {[%emt 0:00:30]} Re8 {[%emt 0:00:30]} 29. a3 {[%emt 0:00:30]} Raa8 {[%emt 0:00:30]} 30. Kf2 {[%emt 0:00:30]} Rad8 {[%emt 0:00:30]} 31. exd5 {[%emt 0:00:30]} Rxe1 {[%emt 0:00:30]} 32. Kxe1 {[%emt 0:00:30]} cxd5 {[%emt 0:00:30]} 33. Kf2 {[%emt 0:00:30]} Ke7 {[%emt 0:00:30]} 34. Re2+ {[%emt 0:00:30]} Kd6 {[%emt 0:00:30]} 35. Bxc4 {[%emt 0:00:30]} bxc4 {[%emt 0:00:30]} 36. Ke1 {[%emt 0:00:30]} Ra8 {[%emt 0:00:30]} 37. Kd2 {[%emt 0:00:30]} Ra6 {[%emt 0:00:30]} 38. Kc2 {[%emt 0:00:30]} Rb6 {[%emt 0:00:30]} 39. Re3 {[%emt 0:00:30]} Kd7 {[%emt 0:00:30]} 40. Re5 {[%emt 0:00:30]} Kd6 {[%emt 0:00:30]} 41. Re3 {[%emt 0:30:30]} g5 {[%emt 0:30:30]} 42. Rc3 {[%emt 0:00:30]} Rc6 {[%emt 0:00:30]} 43. Re3 {[%emt 0:00:30]} Rc8 {[%emt 0:00:30]} 44. Re5 {[%emt 0:00:30]} f6 {[%emt 0:00:30]} 45. Rf5 {[%emt 0:00:30]} Ke6 {[%emt 0:00:30]} 46. f4 {[%emt 0:00:30]} Rc6 $11 {[%emt 0:00:30]} 1/2-1/2

[Event "SAIF POWERTEC 45th BAN Ch 2019"]
[Site "Dhaka"]
[Date "2019.11.06"]
[Round "5.13"]
[White "Hamid, Rani"]
[Black "Nayem, Haque"]
[Result "0-1"]
[ECO "C83"]
[WhiteElo "1916"]
[BlackElo "1911"]
[Annotator "NA RC"]
[PlyCount "104"]
[EventDate "2019.11.02"]
[EventType "swiss"]
[EventRounds "10"]
[EventCountry "BAN"]
[SourceTitle "playchess.com"]
[Source "ChessBase"]
[SourceQuality "1"]
[TimeControl "40/5400+30:1800+30"]

1. e4 e5 2. Nf3 Nc6 3. Bb5 a6 4. Ba4 Nf6 5. O-O Nxe4 6. d4 b5 7. Bb3 d5 8. dxe5 Be6 9. c3 Be7 10. Qe2 Nc5 11. Nd4 Nxd4 12. cxd4 Nxb3 13. axb3 O-O 14. Be3 Qd7 15. Nd2 c5 16. Nf3 c4 17. h3 Bf5 18. Rfc1 cxb3 19. Rc3 Bc2 20. Bd2 b4 21. Re3 Qb5 22. Qe1 a5 23. e6 f6 24. Nh4 f5 25. Nf3 a4 26. Ne5 a3 27. Bc1 Qb6 28. Qd2 f4 29. Rf3 Qxe6 30. Rxf4 Rxf4 31. Qxf4 h6 32. Qd2 Qf5 33. Nc6 Qf6 34. Nxb4 Bxb4 35. Qxb4 Rf8 36. Qe1 a2 37. Be3 Rc8 38. Qb4 Qf5 39. Qb7 Re8 40. Kh2 Kh7 41. Qb4 Re6 42. Qd2 Rg6 43. f3 Bb1 44. Bf4 Qc2 45. Kg1 Qxd2 46. Bxd2 Rc6 47. Kf2 Rc2 48. Ke3 Rxb2 49. g4 Rxd2 50. Kxd2 b2 51. Rxa2 Bxa2 52. Kc2 b1=Q+ 0-1

[Event "SAIF POWERTEC 45th BAN Ch 2019"]
[Site "Dhaka"]
[Date "2019.11.06"]
[Round "5.14"]
[White "Md. Jamal Uddin"]
[Black "Hossain, Delwar"]
[Result "0-1"]
[ECO "D30"]
[WhiteElo "2064"]
[BlackElo "2080"]
[Annotator "NA RC"]
[PlyCount "91"]
[EventDate "2019.11.02"]
[EventType "swiss"]
[EventRounds "10"]
[EventCountry "BAN"]
[SourceTitle "playchess.com"]
[Source "ChessBase"]
[SourceQuality "1"]
[TimeControl "40/5400+30:1800+30"]

1. d4 d5 2. Nf3 Nf6 3. c4 e6 4. Bg5 Nbd7 5. e3 Be7 6. Nbd2 O-O 7. Rc1 dxc4 8. Bxc4 a6 9. a4 b6 10. Bd3 Bb7 11. O-O c5 12. Qe2 Nd5 13. Bxe7 Qxe7 14. Ne4 Rfc8 15. Rfd1 Nb4 16. Bb1 Bd5 17. Nc3 Bb7 18. e4 cxd4 19. Nxd4 Ne5 20. f4 Ng6 21. Qf2 Nf8 22. e5 Qc5 23. Nce2 Qd5 24. Nc3 Qc5 25. Kh1 Nd5 26. Nce2 Qb4 27. b3 Rxc1 28. Rxc1 Rd8 29. Be4 Ng6 30. f5 exf5 31. Bxf5 Ndf4 32. Nxf4 Rxd4 33. Nd3 Rxd3 34. Bxd3 Nxe5 35. Re1 f6 36. Bc2 g6 37. Rd1 Qg4 38. Qg3 Qe2 39. Qh3 Qxc2 40. Rd8+ Kg7 41. Rd7+ Nxd7 42. Qxd7+ Kh6 43. Qh3+ Kg5 44. Qg3+ Kf5 45. h3 Qc1+ 46. Kh2 0-1

[Event "SAIF POWERTEC 45th BAN Ch 2019"]
[Site "Dhaka"]
[Date "2019.11.06"]
[Round "5.15"]
[White "Hossain, Monir"]
[Black "Chowdhury, Sohel"]
[Result "1/2-1/2"]
[ECO "D45"]
[WhiteElo "2050"]
[BlackElo "2068"]
[Annotator "NA RC"]
[PlyCount "30"]
[EventDate "2019.11.02"]
[EventType "swiss"]
[EventRounds "10"]
[EventCountry "BAN"]
[SourceTitle "playchess.com"]
[Source "ChessBase"]
[SourceQuality "1"]
[TimeControl "40/5400+30:1800+30"]

1. d4 d5 2. c4 c6 3. Nf3 Nf6 4. Nc3 e6 5. e3 Nbd7 6. Qc2 Bd6 7. Bd2 O-O 8. e4 dxe4 9. Nxe4 Nxe4 10. Qxe4 Nf6 11. Qh4 Re8 12. O-O-O h6 13. Ne5 Nd7 14. Qe4 Nf6 15. Qf3 c5 1/2-1/2

[Event "SAIF POWERTEC 45th BAN Ch 2019"]
[Site "Dhaka"]
[Date "2019.11.07"]
[Round "6.5"]
[White "Manon, Reja Neer"]
[Black "Chatterjee, Debaraj"]
[Result "1-0"]
[ECO "B92"]
[WhiteElo "1829"]
[BlackElo "2250"]
[Annotator "RC"]
[PlyCount "55"]
[EventDate "2019.11.02"]
[EventType "swiss"]
[EventCountry "BAN"]
[SourceTitle "playchess.com"]
[Source "ChessBase"]
[SourceQuality "1"]
[TimeControl "40/5400+30:1800+30"]

1. e4 {[%emt 0:00:00]} c5 {[%emt 0:07:35]} 2. Nf3 {[%emt 0:00:00]} d6 {[%emt 0:00:14]} 3. d4 {[%emt 0:00:00]} cxd4 {[%emt 0:00:07]} 4. Nxd4 {[%emt 1:32:00]} Nf6 {[%emt 0:00:06]} 5. Nc3 {[%emt 0:00:07]} a6 {[%emt 0:00:06]} 6. Be2 {[%emt 1:32:53]} e5 {[%emt 0:00:28]} 7. Nb3 {[%emt 1:33:12]} Be7 {[%emt 0:00:08]} 8. O-O {[%emt 0:00:25]} O-O {[%emt 0:00:56]} 9. Be3 {[%emt 0:00:09]} Be6 {[%emt 0:01:23]} 10. f4 {[%emt 0:01:51]} exf4 {[%emt 0:01:35]} 11. Bxf4 {[%emt 0:00:35]} Nc6 {[%emt 0:00:18]} 12. Qe1 {[%emt 1:32:40]} d5 {[%emt 0:13:55]} 13. e5 {[%emt 0:13:04]} Qb6+ {[%emt 0:11:37]} 14. Kh1 {[%emt 0:01:12]} Ne4 {[%emt 0:00:11]} 15. Bd3 {[%emt 0:14:25]} Nc5 {[%emt 0:58:51]} 16. Nxc5 {[%emt 0:10:44]} Qxc5 {[%emt 0:01:09]} 17. Qg3 {[%emt 0:55:07]} Rfe8 {[%emt 0:08:38]} 18. Rad1 {[%emt 0:04:01]} Nb4 {[%emt 0:07:21]} 19. Be3 {[%emt 0:19:09]} Qa5 {[%emt 0:07:03]} 20. Bf5 {[%emt 0:31:56]} Nc6 {[%emt 0:06:43]} 21. Qh3 {[%emt 0:00:00]} Bxf5 {[%emt 0:03:03]} 22. Qxf5 {[%emt 0:00:00]} d4 {[%emt 0:00:26]} 23. Bxd4 {[%emt 0:01:30]} Nxd4 {[%emt 0:00:03]} 24. Rxd4 {[%emt 0:00:00]} Qb6 {[%emt 0:09:25]} 25. Qxf7+ {[%emt 0:00:00]} Kh8 {[%emt 0:00:01]} 26. Rg4 {[%emt 0:00:00]} Bf8 {[%emt 0:02:25]} 27. Nd5 {[%emt 0:00:00]} Qd8 {[%emt 0:01:45]} 28. Nf6 {[%emt 0:00:00]} 1-0

[Event "SAIF POWERTEC 45th BAN Ch 2019"]
[Site "Dhaka"]
[Date "2019.11.07"]
[Round "6.6"]
[White "Mehdi Hasan Parag"]
[Black "Ahmed, Sheikh Nasir"]
[Result "1-0"]
[ECO "B88"]
[WhiteElo "2181"]
[BlackElo "2185"]
[Annotator "RC"]
[PlyCount "99"]
[EventDate "2019.11.02"]
[EventType "swiss"]
[EventCountry "BAN"]
[SourceTitle "playchess.com"]
[Source "ChessBase"]
[SourceQuality "1"]
[TimeControl "40/5400+30:1800+30"]

1. e4 {[%emt 0:00:00]} c5 {[%emt 0:18:58]} 2. Nf3 {[%emt 0:00:05]} d6 {[%emt 0:00:23]} 3. d4 {[%emt 0:00:31]} cxd4 {[%emt 0:00:07]} 4. Nxd4 {[%emt 0:00:04]} Nf6 {[%emt 0:00:11]} 5. Nc3 {[%emt 0:00:06]} Nc6 {[%emt 0:00:11]} 6. Bc4 {[%emt 1:32:14]} e6 {[%emt 0:00:12]} 7. Be3 {[%emt 0:00:24]} a6 {[%emt 0:00:27]} 8. Bb3 {[%emt 0:00:10]} Na5 {[%emt 0:00:17]} 9. f4 {[%emt 0:02:13]} Qc7 {[%emt 0:00:38]} 10. Qf3 {[%emt 1:30:17]} b5 {[%emt 0:09:45]} 11. g4 {[%emt 0:01:43]} Nxb3 {[%emt 0:04:37]} 12. axb3 {[%emt 0:03:13]} Bb7 {[%emt 0:04:58]} 13. g5 {[%emt 0:05:21]} b4 {[%emt 0:01:47]} 14. gxf6 {[%emt 0:00:36]} bxc3 {[%emt 0:00:03]} 15. O-O-O {[%emt 0:04:24]} gxf6 {[%emt 0:02:44]} 16. f5 {[%emt 0:07:58]} e5 {[%emt 0:03:19]} 17. Ne2 {[%emt 0:00:56]} cxb2+ {[%emt 0:49:53]} 18. Kxb2 {[%emt 0:00:14]} a5 {[%emt 0:08:45]} 19. Ra1 {[%emt 0:05:05]} a4 {[%emt 0:00:53]} 20. Bd2 {[%emt 0:18:13]} Be7 {[%emt 0:24:34]} 21. Nc3 {[%emt 0:03:03]} a3+ {[%emt 0:01:46]} 22. Ka2 {[%emt 0:00:23]} d5 {[%emt 0:01:49]} 23. exd5 {[%emt 0:01:38]} Bb4 {[%emt 0:00:19]} 24. Rac1 {[%emt 0:03:34]} Rd8 {[%emt 0:07:19]} 25. Rhd1 {[%emt 0:03:15]} Bxc3 {[%emt 0:00:14]} 26. Bxc3 {[%emt 0:36:51]} Qc5 {[%emt 0:00:02]} 27. Qg3 {[%emt 0:05:50]} Bxd5 {[%emt 0:00:30]} 28. Bxe5 {[%emt 0:04:27]} Ke7 {[%emt 0:02:50]} 29. Bd4 {[%emt 0:27:09]} Qc6 {[%emt 0:01:03]} 30. Qe3+ {[%emt 0:01:17]} Kd7 {[%emt 0:01:03]} 31. c4 {[%emt 0:01:27]} Bf3 {[%emt 0:00:42]} 32. Bxf6+ {[%emt 0:05:04]} Bxd1 {[%emt 0:00:09]} 33. Rxd1+ {[%emt 0:00:01]} Kc8 {[%emt 0:00:24]} 34. Bxd8 {[%emt 0:00:42]} Rxd8 {[%emt 0:00:23]} 35. Rxd8+ {[%emt 0:00:19]} Kxd8 {[%emt 0:05:02]} 36. Qd4+ {[%emt 0:00:50]} Kc8 {[%emt 0:05:31]} 37. Qd5 {[%emt 0:10:59]} Qh6 {[%emt 0:02:54]} 38. Kxa3 {[%emt 0:00:22]} Qxh2 {[%emt 0:00:06]} 39. Qxf7 {[%emt 0:00:36]} h5 {[%emt 0:01:34]} 40. Qe8+ {[%emt 0:00:00]} Kc7 {[%emt 0:00:00]} 41. Qe7+ {[%emt 0:03:12]} Kc6 {[%emt 0:05:27]} 42. Qe8+ {[%emt 0:00:41]} Kc7 {[%emt 0:01:17]} 43. Qf7+ {[%emt 0:04:11]} Kb6 {[%emt 0:04:37]} 44. Qd5 {[%emt 0:02:23]} Qc2 {[%emt 0:01:54]} 45. Qd6+ {[%emt 0:00:54]} Kb7 {[%emt 0:00:23]} 46. f6 {[%emt 0:01:25]} Qc1+ {[%emt 0:00:52]} 47. Ka4 {[%emt 0:04:17]} Qf1 {[%emt 0:21:13]} 48. Kb5 {[%emt 0:02:06]} h4 {[%emt 0:01:11]} 49. Qd7+ {[%emt 0:00:41]} Kb8 {[%emt 0:00:02]} 50. f7 {[%emt 0:00:45]} 1-0

[Event "SAIF POWERTEC 45th BAN Ch 2019"]
[Site "Dhaka"]
[Date "2019.11.07"]
[Round "6.12"]
[White "Hossain, Delwar"]
[Black "S M Sharon"]
[Result "1-0"]
[ECO "A42"]
[WhiteElo "2080"]
[BlackElo "2092"]
[Annotator "NA RC"]
[PlyCount "89"]
[EventDate "2019.11.02"]
[EventType "swiss"]
[EventCountry "BAN"]
[SourceTitle "playchess.com"]
[Source "ChessBase"]
[SourceQuality "1"]
[TimeControl "40/5400+30:1800+30"]

{[%evp 8,89,52,39,47,51,77,81,101,81,156,112,188,173,170,185,186,180,202,195,196,207,261,258,252,252,257,269,310,245,258,210,219,172,210,204,664,288,288,288,289,327,313,314,293,327,383,383,390,410,441,354,429,412,460,410,802,837,29996,352,703,827,1426,1097,916,1133,1991,5484,5202,1212,879,595,920,654,652,677,963,973,773,722,639,0,29990,890]} 1. d4 {[%emt 1:30:30]} d6 {[%emt 1:30:30]} 2. e4 {[%emt 0:00:30]} g6 {[%emt 0:00:30]} 3. c4 {[%emt 0:00:30]} Bg7 {[%emt 0:00:30]} 4. Nc3 {[%emt 0:00:30]} Nc6 {[%emt 0:00:30]} 5. Be3 {[%emt 0:00:30]} e5 {[%emt 0:00:30]} 6. d5 {[%emt 0:00:30]} Nd4 {[%emt 0:00:30]} 7. Nge2 {[%emt 0:00:30]} Bg4 {[%emt 0:00:30]} 8. f3 {[%emt 0:00:30] A42: Modern Defence: Averbakh Variation} (8. Qa4+ Bd7 9. Qd1 Nxe2 10. Bxe2 f5 11. exf5 gxf5 12. f4 Nf6 13. Bh5+ Kf8 14. fxe5 dxe5 15. O-O Kg8 {0-1 (54) Miljkovic,M (2524)-Tadic,B (2545) Belgrade 2014}) 8... Bxf3 {[%emt 0:00:30]} (8... Nxe2 $142 9. Bxe2 Bd7) 9. Qa4+ {[%emt 0:00:30]} Qd7 {[%emt 0:00:30]} ({Don't go for} 9... b5 $2 10. Nxb5 Kf8 11. gxf3 $18 (11. Bxd4 Bxe2 12. Bxa7 Bxf1 $14) (11. Nexd4 exd4 12. gxf3 dxe3 $11)) (9... Kf8 $16) 10. Qxd7+ {[%emt 0:00:30]} Kxd7 {[%emt 0:00:30]} 11. gxf3 {[%emt 0:00:30]} Nc2+ $146 {[%emt 0:00:30]} ({Predecessor:} 11... Nxf3+ 12. Kf2 Nd4 13. Bh3+ Kd8 14. Rad1 Nc2 15. Bg5+ Bf6 16. Bxf6+ Nxf6 17. a3 a5 18. Kf3 Re8 19. Rd2 Nd4+ 20. Nxd4 exd4 21. Rxd4 {1-0 (21) Sivic,K (2151)-Gorsek,G (1928) ICCF email 2006}) 12. Kd2 {[%emt 0:00:30]} Nxa1 {[%emt 0:00:30]} 13. Bh3+ {[%emt 0:00:30] Discovered Attack} Kd8 {[%emt 0:00:30]} 14. Rxa1 {[%emt 0:00:30]} Bh6 {[%emt 0:00:30] [#]} (14... Nf6 $142 15. c5 dxc5 16. Bxc5 Nd7) 15. f4 $1 {[%emt 0:00:30]} exf4 {[%emt 0:00:30]} 16. Nxf4 {[%emt 0:00:30]} ({Don't take} 16. Bxf4 $6 Bxf4+ 17. Nxf4 Nf6 $16) 16... Bg7 {[%emt 0:00:30]} 17. Rf1 {[%emt 0:00:30]} Ne7 {[%emt 0:00:30]} 18. Nfe2 {[%emt 0:00:30]} Rf8 {[%emt 0:00:30]} 19. Bg5 {[%emt 0:00:30]} h6 {[%emt 0:00:30]} 20. Bf6 {[%emt 0:00:30]} Bxf6 {[%emt 0:00:30]} 21. Rxf6 {[%emt 0:00:30]} Nf5 $2 {[%emt 0:00:30]} (21... Ng8 22. Rf1 a6) 22. Bxf5 {[%emt 0:00:30]} (22. exf5 $142 Ke7 23. Ne4) 22... Ke7 {[%emt 0:00:30]} 23. e5 $1 {[%emt 0:00:30]} dxe5 {[%emt 0:00:30]} 24. Ne4 {[%emt 0:00:30]} gxf5 {[%emt 0:00:30]} 25. Rxf5 {[%emt 0:00:30]} f6 {[%emt 0:00:30]} 26. N2g3 {[%emt 0:00:30]} c6 {[%emt 0:00:30]} 27. Nh5 {[%emt 0:00:30]} cxd5 {[%emt 0:00:30]} 28. cxd5 {[%emt 0:00:30]} Rg8 {[%emt 0:00:30]} 29. d6+ {[%emt 0:00:30]} Ke6 {[%emt 0:00:30]} 30. Rxf6+ {[%emt 0:00:30] Double Attack} Kd5 {[%emt 0:00:30]} 31. Nhg3 {[%emt 0:00:30]} Raf8 $2 {[%emt 0:00:30]} (31... Rgf8 32. Rg6 Rf4) 32. d7 {[%emt 0:00:30]} Rd8 {[%emt 0:00:30]} 33. Rd6+ $2 {[%emt 0:00:30]} (33. Kd3 {mates} Rxd7 34. b4 Rxg3+ 35. hxg3 Rh7 36. Rd6#) 33... Kc4 {[%emt 0:00:30]} 34. Kc2 {[%emt 0:00:30]} h5 {[%emt 0:00:30]} 35. b3+ {[%emt 0:00:30]} Kb5 {[%emt 0:00:30]} 36. Kc3 {[%emt 0:00:30]} b6 {[%emt 0:00:30]} 37. a4+ {[%emt 0:00:30]} Ka5 {[%emt 0:00:30]} 38. Nxh5 {[%emt 0:00:30]} (38. Nf5 $142 Rg1 39. Ne7 Rc1+ 40. Kb2) 38... Rh8 {[%emt 0:00:30]} 39. Nef6 {[%emt 0:00:30]} (39. Nhf6 $142 Rh3+ 40. Rd3 Rxh2 41. Nd6) 39... Ka6 {[%emt 0:00:30]} 40. Re6 {[%emt 0:00:30]} Kb7 {[%emt 0:00:30]} 41. Rxe5 {[%emt 0:30:30]} Kc6 {[%emt 0:30:30]} 42. Re6+ {[%emt 0:00:30]} Kc7 $11 {[%emt 0:00:30]} 43. Re8 {[%emt 0:00:30]} (43. Nf4 Rxd7 44. Nxd7 Kxd7) 43... Rh6 {[%emt 0:00:30]} 44. Re6 $2 {[%emt 0:00:30]} (44. Rxd8 $18 Kxd8 45. Kd4) 44... Rdh8 $2 {[%emt 0:00:30]} 45. Nf4 $18 {[%emt 0:00:30]} (45. Re8 $142 Kb7 46. d8=Q Rxe8 47. Qd7+ Kb8 48. Nxe8 a5 49. Nhf6 b5 50. Nd6) 1-0

[Event "SAIF POWERTEC 45th BAN Ch 2019"]
[Site "Dhaka"]
[Date "2019.11.08"]
[Round "7.4"]
[White "Mohammad Fahad, Rahman"]
[Black "Mehdi Hasan Parag"]
[Result "1-0"]
[ECO "B30"]
[WhiteElo "2250"]
[BlackElo "2181"]
[Annotator "ChessBase"]
[PlyCount "87"]
[EventDate "2019.11.02"]
[EventType "swiss"]
[EventCountry "BAN"]
[SourceTitle "playchess.com"]
[Source "ChessBase"]
[SourceQuality "1"]
[TimeControl "40/5400+30:1800+30"]

1. e4 {[%emt 0:00:00]} c5 {[%emt 0:00:58]} 2. Nf3 {[%emt 0:00:00]} Nc6 {[%emt 0:00:06]} 3. Nc3 {[%emt 0:00:10]} e5 {[%emt 0:00:31]} 4. Bc4 {[%emt 0:00:29]} Be7 {[%emt 0:00:03]} 5. d3 {[%emt 0:02:25]} d6 {[%emt 0:00:06]} 6. Nd2 {[%emt 0:00:31]} Nf6 {[%emt 0:00:06]} 7. Nf1 {[%emt 0:00:07]} Nd7 {[%emt 0:00:11]} 8. Ne3 {[%emt 0:03:34]} Nb6 {[%emt 0:00:23]} 9. O-O {[%emt 0:00:59]} O-O {[%emt 0:00:42]} 10. Ncd5 {[%emt 0:04:54]} Bg5 {[%emt 0:00:41]} 11. Nxb6 {[%emt 0:02:01]} axb6 {[%emt 0:00:03]} 12. c3 {[%emt 0:00:21]} Be6 {[%emt 0:03:01]} 13. a4 {[%emt 0:11:04]} Bxe3 {[%emt 0:03:59]} 14. Bxe3 {[%emt 0:00:15]} d5 {[%emt 0:01:01]} 15. Bb3 {[%emt 0:11:52]} Qd7 {[%emt 0:02:43]} 16. d4 {[%emt 0:08:06]} exd4 {[%emt 0:12:49]} 17. cxd4 {[%emt 0:00:02]} c4 {[%emt 0:02:59]} 18. Bc2 {[%emt 0:01:40]} Nb4 {[%emt 0:07:11]} 19. Bb1 {[%emt 0:17:37]} f5 {[%emt 0:04:53]} 20. exd5 {[%emt 0:12:28]} Nxd5 {[%emt 0:00:39]} 21. Bd2 {[%emt 0:01:36]} b5 {[%emt 0:02:02]} 22. a5 {[%emt 0:03:41]} Ra6 {[%emt 0:09:53]} 23. Re1 {[%emt 0:00:51]} Kh8 {[%emt 0:06:08]} 24. Qf3 {[%emt 0:02:23]} f4 {[%emt 0:02:52]} 25. Re5 {[%emt 0:01:37]} Bg8 {[%emt 0:05:35]} 26. Be4 {[%emt 0:01:03]} Rd6 {[%emt 0:01:43]} 27. Re1 {[%emt 0:00:55]} b4 {[%emt 0:03:41]} 28. h3 {[%emt 0:03:57]} Qd8 {[%emt 0:00:19]} 29. Rxd5 {[%emt 0:02:41]} Bxd5 {[%emt 0:04:14]} 30. Bxb4 {[%emt 0:00:09]} Re8 {[%emt 0:04:07]} 31. Bxd6 {[%emt 0:00:17]} Qxd6 {[%emt 0:00:03]} 32. Re2 {[%emt 0:00:45]} h6 {[%emt 0:06:06]} 33. Qh5 {[%emt 0:02:26]} Re6 {[%emt 0:04:09]} 34. Bc2 {[%emt 0:01:18]} Rxe2 {[%emt 0:02:37]} 35. Qxe2 {[%emt 0:00:01]} f3 {[%emt 0:00:33]} 36. gxf3 {[%emt 0:01:15]} Qf6 {[%emt 0:00:26]} 37. Qe8+ {[%emt 0:00:44]} Bg8 {[%emt 0:00:03]} 38. Qe3 {[%emt 0:01:46]} Qd8 {[%emt 0:00:38]} 39. Qe5 {[%emt 0:00:09]} Qf8 {[%emt 0:01:15]} 40. Be4 {[%emt 0:00:00]} Qb4 {[%emt 0:00:00]} 41. d5 {[%emt 0:06:49]} Qxa5 {[%emt 0:01:59]} 42. f4 {[%emt 0:00:27]} b5 {[%emt 0:07:11]} 43. d6 {[%emt 0:00:13]} Qd2 {[%emt 0:01:05]} 44. Qe7 {[%emt 0:03:10]} 1-0

[Event "SAIF POWERTEC 45th BAN Ch 2019"]
[Site "Dhaka"]
[Date "2019.11.08"]
[Round "7.7"]
[White "Chatterjee, Debaraj"]
[Black "Nayem, Haque"]
[Result "*"]
[ECO "E97"]
[WhiteElo "2250"]
[BlackElo "1911"]
[Annotator "RC"]
[PlyCount "59"]
[EventDate "2019.11.02"]
[EventType "swiss"]
[EventCountry "BAN"]
[SourceTitle "playchess.com"]
[Source "ChessBase"]
[SourceQuality "1"]
[TimeControl "40/5400+30:1800+30"]

1. d4 {[%emt 0:18:30]} Nf6 {[%emt 0:00:00]} 2. c4 {[%emt 0:00:11]} g6 {[%emt 0:00:00]} 3. Nc3 {[%emt 0:00:16]} Bg7 {[%emt 0:00:02]} 4. e4 {[%emt 0:00:09]} d6 {[%emt 0:00:09]} 5. Nf3 {[%emt 0:00:07]} O-O {[%emt 0:00:11]} 6. Be2 {[%emt 0:00:06]} e5 {[%emt 0:00:26]} 7. O-O {[%emt 0:00:12]} Nc6 {[%emt 0:00:03]} 8. d5 {[%emt 0:00:07]} Ne7 {[%emt 0:00:18]} 9. b4 {[%emt 0:00:03]} a5 {[%emt 0:00:15]} 10. bxa5 {[%emt 0:00:17]} Rxa5 {[%emt 0:00:42]} 11. Nd2 {[%emt 0:01:05]} Nd7 {[%emt 0:00:17]} 12. Nb3 {[%emt 0:07:09]} Ra8 {[%emt 0:00:42]} 13. Be3 {[%emt 0:00:06]} b6 {[%emt 0:00:03]} 14. a4 {[%emt 0:00:47]} f5 {[%emt 0:00:19]} 15. f3 {[%emt 0:00:52]} Nc5 {[%emt 0:00:01]} 16. a5 {[%emt 0:04:52]} f4 {[%emt 0:05:24]} 17. Bf2 {[%emt 0:00:09]} g5 {[%emt 0:02:43]} 18. Qc2 {[%emt 1:04:02]} Nxb3 {[%emt 0:03:57]} 19. Qxb3 {[%emt 0:00:04]} bxa5 {[%emt 1:23:58]} 20. c5 {[%emt 0:00:55]} Bd7 {[%emt 0:07:29]} 21. c6 {[%emt 0:09:20]} Bc8 {[%emt 0:02:27]} 22. Qb5 {[%emt 0:00:22]} Rf6 {[%emt 0:16:32]} 23. Rxa5 {[%emt 0:01:53]} Rxa5 {[%emt 0:00:08]} 24. Qxa5 {[%emt 0:00:05]} Rh6 {[%emt 0:00:06]} 25. Rb1 {[%emt 0:06:48]} Qe8 {[%emt 0:01:03]} 26. Rb8 {[%emt 0:00:49]} Qh5 {[%emt 0:00:26]} 27. h3 {[%emt 0:08:31]} Bf8 {[%emt 0:00:10]} 28. Qa8 {[%emt 0:08:14]} Bxh3 {[%emt 0:00:16]} 29. Rxf8+ {[%emt 0:00:11]} Kg7 {[%emt 0:00:44]} 30. Qe8 {[%emt 0:00:56]} *